fUST/lending_fUST_20250618
["ID","MTS","AMOUNT","RATE_DAILY","PERIOD"]
[366303918,1750180238372,-160.0,0.00022022,2]
[366303920,1750180238382,-835.82910252,0.00022022,2]
[366303922,1750180238391,-160.0,0.00022022,2]
[366303924,1750180238402,-424.62582665,0.00022022,2]
[366303926,1750180238411,-202.60405415,0.0002215,6]
[366303928,1750180238421,-202.60405415,0.000224,7]
[366303930,1750180238431,-202.0943273,0.00022636,2]
[366303931,1750180238441,-202.60405415,0.0002265,7]
[366303933,1750180238451,-150.0,0.00022758,2]
[366303936,1750180238461,-202.60405415,0.000229,8]
[366303938,1750180238471,-202.60405415,0.0002315,8]
[366303941,1750180238481,-215.0738,0.00023356,2]
[366303943,1750180238492,-202.60405415,0.000234,9]
[366303944,1750180238502,-202.60405415,0.0002365,9]
[366303946,1750180238511,-406.0,0.00023678,2]
[366303948,1750180238521,-196.030457,0.00023707,3]
[366303950,1750180238531,-153.0,0.0002378,2]
[366303952,1750180238542,-153.0,0.0002378,2]
[366303955,1750180238553,-153.0,0.0002378,2]
[366303956,1750180238564,-153.0,0.0002378,2]
[366303958,1750180238574,-153.0,0.00023781,2]
[366303960,1750180238585,-153.0,0.00023781,2]
[366303962,1750180238595,-153.0,0.00023782,2]
[366303964,1750180238605,-153.0,0.00023782,2]
[366303966,1750180238615,-153.0,0.00023782,2]
[366303968,1750180238626,-153.0,0.00023782,2]
[366303970,1750180238636,-153.0,0.00023782,2]
[366303972,1750180238645,-153.0,0.00023782,2]
[366303974,1750180238655,-153.0,0.00023782,2]
[366303976,1750180238664,-153.0,0.00023783,2]
[366303978,1750180238674,-153.0,0.00023783,2]
[366303980,1750180238683,-153.0,0.00023783,2]
[366303982,1750180238693,-153.0,0.00023783,2]
[366303984,1750180238702,-153.0,0.00023783,2]
[366303985,1750180238712,-153.0,0.00023783,2]
[366303987,1750180238722,-153.0,0.00023784,2]
[366303989,1750180238731,-153.0,0.00023784,2]
[366303991,1750180238741,-153.0,0.00023784,2]
[366303993,1750180238750,-153.0,0.00023784,2]
[366303995,1750180238760,-153.0,0.00023784,2]
[366303997,1750180238769,-153.0,0.00023784,2]
[366303999,1750180238779,-153.0,0.00023784,2]
[366304001,1750180238789,-150.0,0.00023842,2]
[366304003,1750180238799,-17119.60531892,0.000239,2]
[366304005,1750180238810,-5180.994,0.000239,2]
[366304008,1750180238822,-5403.50867911,0.000239,2]
[366304010,1750180238834,-300.0,0.000239,2]
[366304012,1750180238848,-299.88738122,0.000239,2]
[366304171,1750180240690,-3770.54568773,0.000239,2]
[366304355,1750180243484,-2533.54390902,0.000239,2]
[366304357,1750180243493,-202.60405415,0.000239,10]
[366304359,1750180243503,-160.0,0.00023999,2]
[366304362,1750180243522,-5484.144674,0.00024,2]
[366304364,1750180243532,-350.35,0.00024,2]
[366304366,1750180243543,-340.30742521,0.00024044,2]
[366304368,1750180243553,-10668.55592065,0.000241,7]
[366304370,1750180243562,-160.0,0.000241,7]
[366304372,1750180243572,-500.0,0.00024108,2]
[366304374,1750180243582,-500.0,0.00024108,2]
[366304376,1750180243592,-500.0,0.00024108,2]
[366304379,1750180243602,-500.0,0.00024108,2]
[366304382,1750180243612,-500.0,0.00024108,2]
[366304385,1750180243624,-500.0,0.00024108,2]
[366304387,1750180243634,-496.35958879,0.00024108,2]
[366304389,1750180243644,-500.0,0.00024108,2]
[366304391,1750180243654,-500.0,0.00024108,2]
[366304393,1750180243664,-500.0,0.00024108,2]
[366304395,1750180243673,-500.0,0.00024108,2]
[366304397,1750180243683,-500.0,0.00024108,2]
[366304399,1750180243693,-500.0,0.00024108,2]
[366304423,1750180243924,-500.0,0.00024108,2]
[366304425,1750180243935,-337.63588713,0.00024108,2]
[366304427,1750180243945,-500.0,0.00024108,2]
[366304429,1750180243956,-500.0,0.00024108,2]
[366304431,1750180243966,-300.0,0.00024108,2]
[366304433,1750180243976,-335.99847762,0.00024108,2]
[366304434,1750180243986,-460.0,0.00024109,6]
[366304436,1750180243996,-527.6179036,0.00024109,6]
[366304438,1750180244006,-460.0,0.00024109,6]
[366304440,1750180244015,-460.0,0.00024109,6]
[366304442,1750180244025,-460.0,0.00024109,6]
[366304444,1750180244035,-159.481499,0.00024109,7]
[366304446,1750180244045,-460.0,0.00024109,6]
[366304448,1750180244055,-350.5483662,0.00024109,6]
[366304451,1750180244072,-109.4516338,0.00024109,6]
[366304453,1750180244082,-151.0,0.00024109,7]
[366304455,1750180244092,-151.0,0.00024109,7]
[366304457,1750180244102,-400.0,0.00024109,6]
[366304459,1750180244112,-151.0,0.00024109,7]
[366304461,1750180244124,-291.357027,0.00024109,7]
[366304463,1750180244134,-460.0,0.00024109,6]
[366304464,1750180244144,-460.0,0.00024109,6]
[366304465,1750180244154,-460.0,0.00024109,6]
[366304466,1750180244164,-460.0,0.00024109,6]
[366304467,1750180244175,-460.0,0.00024109,6]
[366304468,1750180244185,-460.0,0.00024109,6]
[366304470,1750180244195,-460.0,0.00024109,6]
[366304472,1750180244205,-350.85700147,0.00024109,6]
[366304474,1750180244214,-460.0,0.00024109,6]
[366304476,1750180244224,-441.80511731,0.00024109,6]
[366304478,1750180244234,-460.0,0.00024109,6]
[366304480,1750180244245,-405.5032223,0.00024109,6]
[366304482,1750180244255,-460.0,0.00024109,6]
[366304484,1750180244265,-151.0,0.00024109,7]
[366304485,1750180244275,-151.0,0.00024109,7]
[366304486,1750180244284,-460.0,0.00024109,6]
[366304487,1750180244294,-460.0,0.00024109,6]
[366304488,1750180244303,-460.880334,0.00024109,6]
[366304489,1750180244314,-319.73989259,0.00024109,6]
[366304491,1750180244323,-460.0,0.00024109,6]
[366304493,1750180244333,-460.0,0.00024109,6]
[366304495,1750180244342,-151.0,0.00024109,7]
[366304497,1750180244352,-152.506112,0.00024109,7]
[366304498,1750180244361,-68.89965952,0.00024109,6]
[366304499,1750180244377,-391.10034048,0.00024109,6]
[366304500,1750180244387,-460.0,0.00024109,6]
[366304501,1750180244397,-295.71365952,0.00024109,6]
[366304502,1750180244411,-164.28634048,0.00024109,6]
[366304503,1750180244422,-460.0,0.00024109,6]
[366304504,1750180244433,-460.0,0.00024109,6]
[366304505,1750180244442,-460.0,0.00024109,6]
[366304506,1750180244452,-460.0,0.00024109,6]
[366304507,1750180244462,-460.0,0.00024109,6]
[366304508,1750180244472,-460.0,0.00024109,6]
[366304509,1750180244482,-460.0,0.00024109,6]
[366304510,1750180244492,-460.0,0.00024109,6]
[366304511,1750180244502,-297.81365952,0.00024109,6]
[366304512,1750180244515,-162.18634048,0.00024109,6]
[366304513,1750180244526,-103.85681455,0.00024109,6]
[366304514,1750180244539,-356.14318545,0.00024109,6]
[366304515,1750180244549,-460.0,0.00024109,6]
[366304516,1750180244558,-575.717177,0.00024109,6]
[366304517,1750180244569,-460.0,0.00024109,6]
[366304518,1750180244579,-460.0,0.00024109,6]
[366304519,1750180244588,-460.0,0.00024109,6]
[366304520,1750180244598,-460.0,0.00024109,6]
[366304521,1750180244607,-460.0,0.00024109,6]
[366304522,1750180244617,-460.0,0.00024109,6]
[366304523,1750180244627,-256.12177441,0.00024109,6]
[366304524,1750180244637,-460.0,0.00024109,6]
[366304525,1750180244647,-460.0,0.00024109,6]
[366304526,1750180244658,-460.0,0.00024109,6]
[366304527,1750180244667,-460.0,0.00024109,6]
[366304528,1750180244677,-539.04,0.00024109,6]
[366304529,1750180244687,-309.89797991,0.00024109,6]
[366304690,1750180246448,-460.0,0.00024109,6]
[366304692,1750180246458,-902.01,0.00024109,6]
[366304695,1750180246469,-460.0,0.00024109,6]
[366304696,1750180246479,-460.0,0.00024109,6]
[366304698,1750180246489,-460.0,0.00024109,6]
[366304700,1750180246499,-460.0,0.00024109,6]
[366304701,1750180246508,-460.0,0.00024109,6]
[366304703,1750180246518,-460.0,0.00024109,6]
[366304705,1750180246528,-410.96682637,0.00024109,6]
[366304707,1750180246537,-436.56957506,0.00024109,6]
[366304709,1750180246547,-460.0,0.00024109,6]
[366304711,1750180246558,-430.0,0.00024109,6]
[366304714,1750180246568,-460.0,0.00024109,6]
[366304716,1750180246578,-530.5,0.00024109,6]
[366304718,1750180246588,-460.0,0.00024109,6]
[366304720,1750180246599,-460.0,0.00024109,6]
[366304722,1750180246610,-460.0,0.00024109,6]
[366304724,1750180246621,-460.0,0.00024109,6]
[366304726,1750180246630,-460.0,0.00024109,6]
[366304728,1750180246640,-1159.75,0.00024109,6]
[366304730,1750180246650,-460.0,0.00024109,6]
[366304732,1750180246660,-460.0,0.00024109,6]
[366304734,1750180246673,-460.0,0.00024109,6]
[366304736,1750180246683,-410.0,0.00024109,6]
[366304738,1750180246694,-460.0,0.00024109,6]
[366304740,1750180246704,-460.0,0.00024109,6]
[366304742,1750180246714,-460.0,0.00024109,6]
[366304744,1750180246724,-420.0,0.00024109,6]
[366304746,1750180246734,-460.0,0.00024109,6]
[366304748,1750180246743,-525.36906418,0.00024109,6]
[366304750,1750180246753,-460.0,0.00024109,6]
[366304752,1750180246764,-460.0,0.00024109,6]
[366304754,1750180246774,-421.33517862,0.00024109,6]
[366304756,1750180246785,-460.0,0.00024109,6]
[366304757,1750180246795,-460.0,0.00024109,6]
[366304758,1750180246805,-385.65380767,0.00024109,6]
[366304760,1750180246815,-460.0,0.00024109,6]
[366304762,1750180246825,-460.0,0.00024109,6]
[366304764,1750180246834,-448.38069221,0.00024109,6]
[366304765,1750180246844,-385.51949107,0.00024109,6]
[366304767,1750180246859,-580.98281249,0.00024109,6]
[366304769,1750180246869,-1182.42,0.00024109,2]
[366304771,1750180246879,-499.59,0.00024109,6]
[366304773,1750180246889,-460.0,0.00024109,6]
[366304775,1750180246899,-460.0,0.00024109,6]
[366304777,1750180246908,-460.0,0.00024109,6]
[366304779,1750180246918,-460.0,0.00024109,6]
[366304781,1750180246929,-460.0,0.00024109,6]
[366304783,1750180246939,-460.0,0.00024109,6]
[366304785,1750180246949,-460.0,0.00024109,6]
[366304786,1750180246959,-460.0,0.00024109,6]
[366304788,1750180246968,-460.0,0.00024109,6]
[366304790,1750180246979,-460.0,0.00024109,6]
[366304792,1750180246989,-544.43,0.00024109,6]
[366304794,1750180246999,-460.0,0.00024109,6]
[366304796,1750180247009,-460.0,0.00024109,6]
[366304798,1750180247020,-460.0,0.00024109,6]
[366304800,1750180247031,-1087.73,0.00024109,6]
[366304802,1750180247042,-269.70899425,0.00024109,6]
[366304804,1750180247053,-460.0,0.00024109,6]
[366304806,1750180247063,-607.83801552,0.00024109,6]
[366304808,1750180247073,-460.0,0.00024109,6]
[366304810,1750180247083,-460.0,0.00024109,6]
[366304812,1750180247094,-368.88550851,0.00024109,6]
[366304814,1750180247104,-460.0,0.00024109,6]
[366304816,1750180247114,-460.0,0.00024109,6]
[366304818,1750180247127,-460.0,0.00024109,6]
[366304819,1750180247137,-460.0,0.00024109,6]
[366304821,1750180247148,-460.0,0.00024109,6]
[366304823,1750180247158,-460.0,0.00024109,6]
[366304825,1750180247169,-460.0,0.00024109,6]
[366304827,1750180247181,-246.13882674,0.00024109,6]
[366304829,1750180247192,-460.0,0.00024109,6]
[366304831,1750180247202,-460.0,0.00024109,6]
[366304833,1750180247212,-500.0,0.00024109,6]
[366304835,1750180247222,-460.0,0.00024109,6]
[366304837,1750180247232,-460.0,0.00024109,6]
[366304839,1750180247243,-1441.18,0.00024109,6]
[366304841,1750180247253,-460.0,0.00024109,6]
[366304843,1750180247263,-435.28217313,0.00024109,6]
[366304845,1750180247274,-460.0,0.00024109,6]
[366304847,1750180247284,-777.03,0.00024109,6]
[366304849,1750180247295,-460.0,0.00024109,6]
[366304851,1750180247305,-460.0,0.00024109,6]
[366304853,1750180247315,-286.65482973,0.00024109,6]
[366304855,1750180247325,-460.0,0.00024109,6]
[366304857,1750180247335,-393.76797282,0.00024109,6]
[366304859,1750180247345,-460.0,0.00024109,6]
[366304861,1750180247354,-460.0,0.00024109,6]
[366304863,1750180247364,-581.59,0.00024109,6]
[366304865,1750180247378,-460.0,0.00024109,6]
[366304867,1750180247388,-460.0,0.00024109,6]
[366304869,1750180247398,-460.0,0.00024109,6]
[366304870,1750180247408,-460.0,0.00024109,6]
[366304872,1750180247418,-460.0,0.00024109,6]
[366304874,1750180247428,-460.0,0.00024109,6]
[366304876,1750180247438,-460.0,0.00024109,6]
[366304878,1750180247447,-460.0,0.00024109,6]
[366304880,1750180247456,-460.0,0.00024109,6]
[366304881,1750180247465,-460.0,0.00024109,6]
[366304883,1750180247476,-460.0,0.00024109,6]
[366304885,1750180247486,-460.0,0.00024109,6]
[366304887,1750180247496,-460.0,0.00024109,6]
[366304889,1750180247505,-500.0,0.00024109,6]
[366304891,1750180247516,-460.0,0.00024109,6]
[366304893,1750180247526,-497.56970583,0.00024109,6]
[366304896,1750180247539,-460.0,0.00024109,6]
[366304897,1750180247548,-460.0,0.00024109,6]
[366304899,1750180247558,-460.0,0.00024109,6]
[366304901,1750180247568,-460.0,0.00024109,6]
[366304903,1750180247578,-460.0,0.00024109,6]
[366304905,1750180247589,-460.0,0.00024109,6]
[366304907,1750180247598,-460.0,0.00024109,6]
[366304909,1750180247608,-171.92052508,0.00024109,6]
[366304911,1750180247622,-619.6,0.00024109,6]
[366304913,1750180247632,-460.0,0.00024109,6]
[366304915,1750180247641,-460.0,0.00024109,6]
[366304917,1750180247650,-460.0,0.00024109,6]
[366304919,1750180247660,-460.0,0.00024109,2]
[366304921,1750180247672,-460.0,0.00024109,6]
[366304923,1750180247681,-460.0,0.00024109,6]
[366304925,1750180247691,-572.49499452,0.00024109,6]
[366304927,1750180247701,-460.0,0.00024109,6]
[366304929,1750180247710,-460.0,0.00024109,6]
[366304931,1750180247719,-460.0,0.00024109,6]
[366304933,1750180247729,-460.0,0.00024109,6]
[366304935,1750180247738,-460.0,0.00024109,6]
[366304937,1750180247747,-460.0,0.00024109,6]
[366304939,1750180247756,-460.0,0.00024109,6]
[366304941,1750180247766,-545.71,0.00024109,6]
[366304943,1750180247775,-460.0,0.00024109,6]
[366304944,1750180247786,-460.0,0.00024109,6]
[366304946,1750180247795,-460.0,0.00024109,6]
[366304948,1750180247805,-460.0,0.00024109,6]
[366304950,1750180247816,-460.0,0.00024109,6]
[366304952,1750180247826,-593.21,0.00024109,6]
[366304954,1750180247835,-460.0,0.00024109,6]
[366304956,1750180247845,-460.0,0.00024109,6]
[366304958,1750180247857,-460.0,0.00024109,6]
[366304960,1750180247866,-450.0,0.00024109,6]
[366304962,1750180247879,-460.0,0.00024109,6]
[366304964,1750180247888,-460.0,0.00024109,6]
[366304966,1750180247898,-581.05847454,0.00024109,6]
[366304967,1750180247908,-431.26164576,0.00024109,6]
[366304969,1750180247918,-460.0,0.00024109,6]
[366304971,1750180247928,-460.0,0.00024109,6]
[366304973,1750180247938,-460.0,0.00024109,6]
[366304975,1750180247947,-372.53709734,0.00024109,6]
[366304977,1750180247957,-460.0,0.00024109,6]
[366304979,1750180247967,-508.25653715,0.00024109,6]
[366304981,1750180247977,-460.0,0.00024109,6]
[366304983,1750180247987,-460.0,0.00024109,6]
[366304985,1750180247998,-262.18874095,0.00024109,6]
[366304987,1750180248007,-460.0,0.00024109,6]
[366304989,1750180248017,-1677.18,0.00024109,6]
[366304991,1750180248026,-460.0,0.00024109,6]
[366304993,1750180248036,-460.0,0.00024109,6]
[366304995,1750180248049,-428.51128961,0.00024109,6]
[366304997,1750180248060,-460.0,0.00024109,6]
[366304999,1750180248071,-460.0,0.00024109,6]
[366305001,1750180248081,-460.0,0.00024109,6]
[366305003,1750180248091,-460.0,0.00024109,6]
[366305005,1750180248102,-460.0,0.00024109,6]
[366305007,1750180248112,-460.0,0.00024109,6]
[366305009,1750180248124,-460.0,0.00024109,6]
[366305011,1750180248135,-460.0,0.00024109,6]
[366305013,1750180248146,-460.0,0.00024109,6]
[366305015,1750180248157,-594.71492387,0.00024109,6]
[366305017,1750180248168,-460.0,0.00024109,6]
[366305019,1750180248179,-460.0,0.00024109,6]
[366305021,1750180248190,-460.0,0.00024109,6]
[366305023,1750180248201,-460.0,0.00024109,6]
[366305025,1750180248212,-460.0,0.00024109,6]
[366305027,1750180248223,-480.16,0.00024109,6]
[366305029,1750180248233,-460.0,0.00024109,6]
[366305031,1750180248243,-460.0,0.00024109,6]
[366305033,1750180248253,-460.0,0.00024109,6]
[366305035,1750180248263,-460.0,0.00024109,6]
[366305037,1750180248273,-460.0,0.00024109,6]
[366305039,1750180248283,-460.0,0.00024109,6]
[366305041,1750180248293,-228.03758262,0.00024109,6]
[366305043,1750180248303,-460.0,0.00024109,6]
[366305045,1750180248314,-460.0,0.00024109,6]
[366305047,1750180248324,-460.0,0.00024109,6]
[366305049,1750180248333,-305.27095341,0.00024109,6]
[366305051,1750180248344,-460.0,0.00024109,6]
[366305052,1750180248353,-1012.85984742,0.00024109,6]
[366305054,1750180248364,-460.0,0.00024109,6]
[366305056,1750180248377,-460.0,0.00024109,6]
[366305058,1750180248387,-403.6123643,0.00024109,6]
[366305059,1750180248397,-460.0,0.00024109,6]
[366305061,1750180248408,-442.19252578,0.00024109,6]
[366305077,1750180248569,-460.0,0.00024109,6]
[366305079,1750180248580,-460.0,0.00024109,6]
[366305081,1750180248591,-460.0,0.00024109,6]
[366305083,1750180248603,-485.53246115,0.00024109,6]
[366305085,1750180248614,-460.0,0.00024109,6]
[366305087,1750180248626,-460.0,0.00024109,6]
[366305089,1750180248636,-440.0,0.00024109,6]
[366305090,1750180248646,-460.0,0.00024109,6]
[366305092,1750180248656,-460.0,0.00024109,6]
[366305094,1750180248667,-460.0,0.00024109,6]
[366305096,1750180248678,-420.68166359,0.00024109,6]
[366305098,1750180248688,-273.5333032,0.00024109,6]
[366305100,1750180248697,-460.0,0.00024109,6]
[366305102,1750180248707,-477.29,0.00024109,6]
[366305104,1750180248717,-460.0,0.00024109,6]
[366305106,1750180248728,-460.0,0.00024109,6]
[366305108,1750180248738,-460.0,0.00024109,6]
[366305110,1750180248748,-460.0,0.00024109,6]
[366305112,1750180248759,-460.0,0.00024109,6]
[366305114,1750180248769,-502.23526613,0.00024109,6]
[366305116,1750180248779,-460.0,0.00024109,6]
[366305118,1750180248790,-460.0,0.00024109,6]
[366305120,1750180248800,-460.0,0.00024109,6]
[366305122,1750180248810,-460.0,0.00024109,6]
[366305124,1750180248819,-460.0,0.00024109,6]
[366305126,1750180248828,-460.0,0.00024109,6]
[366305128,1750180248839,-460.0,0.00024109,6]
[366305129,1750180248849,-460.0,0.00024109,6]
[366305131,1750180248862,-460.0,0.00024109,6]
[366305133,1750180248874,-460.0,0.00024109,6]
[366305135,1750180248885,-461.08894848,0.00024109,6]
[366305137,1750180248897,-460.0,0.00024109,6]
[366305139,1750180248908,-358.63942026,0.00024109,6]
[366305141,1750180248918,-315.55178573,0.00024109,6]
[366305143,1750180248928,-1138.6,0.00024109,6]
[366305145,1750180248938,-460.0,0.00024109,6]
[366305147,1750180248947,-500.0,0.00024109,6]
[366305149,1750180248957,-589.63629964,0.00024109,6]
[366305150,1750180248967,-465.67,0.00024109,6]
[366305152,1750180248977,-460.0,0.00024109,6]
[366305154,1750180248987,-460.0,0.00024109,6]
[366305156,1750180248997,-460.0,0.00024109,6]
[366305158,1750180249009,-419.29738682,0.00024109,6]
[366305160,1750180249020,-460.0,0.00024109,6]
[366305162,1750180249030,-4192.51,0.00024109,6]
[366305164,1750180249040,-408.29384029,0.00024109,6]
[366305166,1750180249051,-487.87,0.00024109,6]
[366305168,1750180249061,-460.0,0.00024109,6]
[366305170,1750180249072,-460.0,0.00024109,6]
[366305172,1750180249082,-460.0,0.00024109,6]
[366305174,1750180249092,-460.0,0.00024109,6]
[366305176,1750180249102,-460.0,0.00024109,6]
[366305177,1750180249112,-460.0,0.00024109,6]
[366305178,1750180249124,-460.0,0.00024109,6]
[366305179,1750180249134,-2358.43,0.00024109,6]
[366305180,1750180249143,-460.0,0.00024109,6]
[366305181,1750180249152,-460.0,0.00024109,6]
[366305182,1750180249162,-213.58661252,0.00024109,6]
[366305183,1750180249172,-460.0,0.00024109,6]
[366305184,1750180249182,-460.0,0.00024109,6]
[366305185,1750180249192,-873.1,0.00024109,6]
[366305186,1750180249202,-416.72315125,0.00024109,6]
[366305187,1750180249212,-460.0,0.00024109,6]
[366305188,1750180249221,-417.8070118,0.00024109,6]
[366305189,1750180249230,-422.61235914,0.00024109,6]
[366305190,1750180249240,-649.41,0.00024109,6]
[366305191,1750180249250,-460.0,0.00024109,6]
[366305192,1750180249261,-460.0,0.00024109,6]
[366305193,1750180249271,-460.0,0.00024109,6]
[366305194,1750180249281,-460.0,0.00024109,6]
[366305195,1750180249291,-460.0,0.00024109,6]
[366305196,1750180249302,-460.0,0.00024109,6]
[366305197,1750180249312,-460.0,0.00024109,6]
[366305198,1750180249322,-460.0,0.00024109,6]
[366305199,1750180249331,-460.0,0.00024109,6]
[366305200,1750180249341,-1387.95,0.00024109,6]
[366305201,1750180249351,-460.0,0.00024109,6]
[366305202,1750180249361,-460.0,0.00024109,6]
[366305203,1750180249372,-460.0,0.00024109,6]
[366305204,1750180249382,-281.04995411,0.00024109,6]
[366305205,1750180249392,-955.94,0.00024109,6]
[366305206,1750180249402,-460.0,0.00024109,6]
[366305207,1750180249411,-460.0,0.00024109,6]
[366305208,1750180249421,-460.0,0.00024109,6]
[366305209,1750180249431,-1987.47,0.00024109,6]
[366305210,1750180249440,-494.81946361,0.00024109,6]
[366305211,1750180249450,-460.0,0.00024109,6]
[366305212,1750180249459,-460.0,0.00024109,6]
[366305213,1750180249468,-460.0,0.00024109,6]
[366305214,1750180249477,-1697.49,0.00024109,6]
[366305215,1750180249486,-326.90070196,0.00024109,6]
[366305216,1750180249495,-1213.9,0.00024109,6]
[366305217,1750180249504,-460.0,0.00024109,6]
[366305218,1750180249513,-1415.12,0.00024109,6]
[366305219,1750180249522,-697.98,0.00024109,6]
[366305220,1750180249531,-273.49843455,0.00024109,6]
[366305221,1750180249541,-460.0,0.00024109,6]
[366305222,1750180249550,-460.0,0.00024109,6]
[366305223,1750180249560,-460.0,0.00024109,6]
[366305224,1750180249569,-460.0,0.00024109,6]
[366305226,1750180249579,-4243.61,0.00024109,6]
[366305228,1750180249589,-500.0,0.00024109,6]
[366305230,1750180249599,-500.0,0.00024109,6]
[366305232,1750180249608,-500.0,0.00024109,6]
[366305234,1750180249618,-460.0,0.00024109,6]
[366305235,1750180249630,-500.0,0.00024109,6]
[366305238,1750180249640,-222.6982832,0.00024109,6]
[366305239,1750180249650,-460.0,0.00024109,6]
[366305241,1750180249662,-1232.1,0.00024109,6]
[366305243,1750180249672,-460.0,0.00024109,6]
[366305245,1750180249682,-460.0,0.00024109,6]
[366305247,1750180249691,-460.0,0.00024109,6]
[366305249,1750180249700,-2355.36,0.00024109,6]
[366305251,1750180249712,-460.0,0.00024109,6]
[366305253,1750180249725,-460.0,0.00024109,6]
[366305255,1750180249734,-7617.87,0.00024109,6]
[366305257,1750180249743,-460.0,0.00024109,6]
[366305259,1750180249753,-460.0,0.00024109,6]
[366305261,1750180249763,-460.0,0.00024109,6]
[366305263,1750180249773,-937.53,0.00024109,6]
[366305265,1750180249782,-1468.18,0.00024109,6]
[366305267,1750180249791,-787.03,0.00024109,6]
[366305269,1750180249801,-497.25161525,0.00024109,6]
[366305271,1750180249811,-460.0,0.00024109,6]
[366305273,1750180249821,-4506.32,0.00024109,6]
[366305275,1750180249831,-370.0,0.00024109,6]
[366305277,1750180249841,-514.04277809,0.00024109,6]
[366305279,1750180249852,-460.0,0.00024109,6]
[366305281,1750180249862,-237.55222512,0.00024109,6]
[366305283,1750180249876,-1467.97,0.00024109,6]
[366305285,1750180249886,-460.0,0.00024109,6]
[366305287,1750180249897,-460.0,0.00024109,6]
[366305288,1750180249906,-460.0,0.00024109,6]
[366305290,1750180249918,-8414.64,0.00024109,6]
[366305292,1750180249927,-460.0,0.00024109,6]
[366305294,1750180249938,-460.0,0.00024109,6]
[366305296,1750180249949,-281.08305988,0.00024109,6]
[366305298,1750180249959,-460.0,0.00024109,6]
[366305300,1750180249969,-346.97104393,0.00024109,6]
[366305302,1750180249979,-460.0,0.00024109,6]
[366305304,1750180249989,-513.21608021,0.00024109,6]
[366305306,1750180249999,-460.0,0.00024109,6]
[366305308,1750180250010,-460.0,0.00024109,6]
[366305310,1750180250020,-7513.64,0.00024109,6]
[366305312,1750180250029,-642.34,0.00024109,6]
[366305314,1750180250038,-460.0,0.00024109,6]
[366305316,1750180250048,-460.0,0.00024109,6]
[366305318,1750180250057,-460.0,0.00024109,6]
[366305320,1750180250067,-460.0,0.00024109,6]
[366305322,1750180250076,-1430.87,0.00024109,6]
[366305324,1750180250086,-460.0,0.00024109,6]
[366305326,1750180250096,-460.0,0.00024109,6]
[366305328,1750180250106,-460.0,0.00024109,6]
[366305330,1750180250116,-1762.81,0.00024109,6]
[366305332,1750180250129,-905.47,0.00024109,6]
[366305334,1750180250139,-7164.64,0.00024109,6]
[366305336,1750180250149,-460.0,0.00024109,6]
[366305338,1750180250158,-436.54330812,0.00024109,6]
[366305339,1750180250168,-460.0,0.00024109,6]
[366305341,1750180250177,-992.09,0.00024109,6]
[366305343,1750180250187,-460.0,0.00024109,6]
[366305345,1750180250197,-460.0,0.00024109,6]
[366305347,1750180250206,-2252.84,0.00024109,6]